bitfinex/quotes_BTCUSD_20241011
["timestamp","ask_amount","ask_price","bid_price","bid_amount"]
[1728637919271,0.544549,60820.0,60819.0,0.165422]
[1728637919721,0.544549,60820.0,60819.0,0.001]
[1728637920365,0.8782773,60820.0,60819.0,0.001]
[1728637921504,1.11806696,60820.0,60819.0,0.001]
[1728637921730,1.12006696,60820.0,60819.0,0.002]
[1728637921970,1.12006696,60820.0,60819.0,0.001]
[1728637921971,0.96647393,60820.0,60819.0,0.001]
[1728637922196,0.337638,60813.0,60812.0,0.24774756]
[1728637922417,0.5069473,60813.0,60812.0,0.24774756]
[1728637922858,0.5069473,60813.0,60810.0,0.000817]
[1728637922859,0.164443,60811.0,60810.0,0.000817]
[1728637923094,0.377449,60820.0,60819.0,0.164422]
[1728637923323,0.372449,60820.0,60819.0,0.34982784]
[1728637923756,0.372449,60820.0,60819.0,0.55575852]
[1728637923760,0.372449,60820.0,60819.0,0.43299701]
[1728637923993,0.372449,60820.0,60819.0,0.53883926]
[1728637924217,0.372449,60820.0,60819.0,0.62043926]
[1728637924428,0.370449,60820.0,60819.0,0.61943926]
[1728637925620,0.370449,60820.0,60819.0,0.62543926]
[1728637925842,0.370449,60820.0,60819.0,0.63043926]
[1728637926519,0.370449,60820.0,60819.0,0.67512541]
[1728637927714,0.370449,60820.0,60819.0,0.80600819]
[1728637928172,0.370449,60820.0,60819.0,0.67512541]
[1728637928635,0.370449,60820.0,60819.0,0.80587016]
[1728637929344,0.370449,60820.0,60819.0,0.81774319]
[1728637930550,0.370449,60820.0,60819.0,0.81274319]
[1728637931007,0.370449,60820.0,60819.0,0.80674319]
[1728637931483,0.370449,60820.0,60819.0,0.81274319]
[1728637931937,0.370449,60820.0,60819.0,0.80674319]
[1728637932169,0.370449,60820.0,60819.0,0.81574319]
[1728637932409,0.370449,60820.0,60819.0,0.81074319]
[1728637932668,0.370449,60820.0,60819.0,0.81374319]
[1728637933377,0.370449,60820.0,60819.0,0.81366519]
[1728637936286,0.370449,60820.0,60819.0,0.82594175]
[1728637938818,0.370449,60820.0,60819.0,0.69505897]
[1728637939787,0.370449,60820.0,60819.0,0.74620722]
[1728637943012,0.370449,60820.0,60819.0,0.66360722]
[1728637945154,0.370449,60820.0,60819.0,0.65133066]
[1728637945391,0.370449,60820.0,60819.0,0.66360426]
[1728637946573,0.370449,60820.0,60819.0,0.61861347]
[1728637946806,0.370449,60820.0,60819.0,0.76571562]
[1728637947253,0.370449,60820.0,60819.0,0.75344202]
[1728637947958,0.370449,60820.0,60819.0,0.75365496]
[1728637948684,0.370449,60820.0,60819.0,0.60645734]
[1728637951109,0.370449,60820.0,60819.0,0.42533527]
[1728637951706,0.370449,60820.0,60819.0,0.60659365]
[1728637953825,0.370449,60820.0,60819.0,0.42533527]
[1728637954330,0.370449,60820.0,60819.0,0.61891663]
[1728637955121,0.449949,60820.0,60819.0,0.41615161]
[1728637955365,0.540649,60820.0,60819.0,0.46325598]
[1728637955602,0.540649,60820.0,60819.0,0.18373179]
[1728637956051,0.540649,60820.0,60819.0,0.18073179]
[1728637956283,0.540649,60820.0,60819.0,0.17973179]
[1728637956505,0.540649,60820.0,60819.0,0.18073179]
[1728637956955,0.546649,60820.0,60819.0,0.18073179]
[1728637957210,0.546649,60820.0,60819.0,0.164422]
[1728637957455,0.546649,60820.0,60819.0,0.35807269]
[1728637957916,0.548649,60820.0,60819.0,0.48088847]
[1728637958164,0.548649,60820.0,60819.0,0.35807269]
[1728637962487,0.548649,60820.0,60819.0,0.45633139]
[1728637962710,0.548649,60820.0,60819.0,0.35807269]
[1728637964205,0.548649,60820.0,60819.0,0.48088733]
[1728637964698,0.548649,60820.0,60819.0,0.45636635]
[1728637966554,0.548649,60820.0,60819.0,0.4564744]
[1728637967487,0.548649,60820.0,60819.0,0.35816907]
[1728637967943,0.548649,60820.0,60819.0,0.45648734]
[1728637968172,0.548649,60820.0,60819.0,0.35816907]
[1728637968396,0.548649,60820.0,60819.0,0.48105073]
[1728637968654,0.548649,60820.0,60819.0,0.35816907]
[1728637968876,0.548649,60820.0,60819.0,0.48111744]
[1728637969118,0.548649,60820.0,60819.0,0.34586445]
[1728637969350,0.548649,60820.0,60819.0,0.35816907]
[1728637969570,0.548649,60820.0,60819.0,0.48111744]
[1728637970973,0.548649,60820.0,60819.0,0.87482482]
[1728637970974,0.36130371,60820.0,60819.0,0.87482482]
[1728637971199,0.30225821,60820.0,60819.0,0.72736106]
[1728637971457,0.30225821,60820.0,60819.0,0.87280575]
[1728637971701,0.30225821,60820.0,60819.0,0.87280535]
[1728637971925,0.30225821,60820.0,60819.0,0.88692997]
[1728637972159,0.29425821,60820.0,60819.0,0.88692997]
[1728637972399,0.29425821,60820.0,60819.0,0.74746621]
[1728637972624,0.29425821,60820.0,60819.0,0.74346621]
[1728637972850,0.29425821,60820.0,60819.0,0.73946621]
[1728637973080,0.29525821,60820.0,60819.0,0.75846621]
[1728637973543,0.29525821,60820.0,60819.0,0.75646621]
[1728637974686,0.29525821,60820.0,60819.0,0.74746621]
[1728637974910,0.29425821,60820.0,60819.0,0.74746621]
[1728637975179,0.29525821,60820.0,60819.0,0.7464672]
[1728637975415,0.29525821,60820.0,60819.0,0.7564672]
[1728637976084,0.29525821,60820.0,60819.0,0.7564458]
[1728637977984,0.29525821,60820.0,60819.0,0.67055381]
[1728637978221,0.29525821,60820.0,60819.0,0.5801458]
[1728637980064,0.29525821,60820.0,60819.0,0.5751458]
[1728637981000,0.29525821,60820.0,60819.0,0.5801458]
[1728637982193,0.29525821,60820.0,60819.0,0.56802118]
[1728637983405,0.29525821,60820.0,60819.0,0.61922622]
[1728637984317,0.29525821,60820.0,60819.0,0.56804494]
[1728637985737,0.29525821,60820.0,60819.0,0.6192573]
[1728637987369,0.1790219,60820.0,60819.0,0.73023693]
[1728637987618,0.1790219,60820.0,60819.0,0.87770797]
[1728637989030,0.1790219,60820.0,60819.0,0.54879212]
[1728637989269,0.1790219,60820.0,60819.0,0.87764458]
[1728637993778,0.1790219,60820.0,60819.0,0.97164458]
[1728637994720,0.1790219,60820.0,60819.0,0.97246158]
[1728637995703,0.1393028,60820.0,60819.0,0.8250251]
[1728637995922,0.1393028,60820.0,60819.0,0.73713311]
[1728637997497,0.1393028,60820.0,60819.0,0.78832461]
[1728637998847,0.1393028,60820.0,60819.0,0.79032461]
[1728637999574,0.1393028,60820.0,60819.0,0.70444233]
[1728638000510,0.08271103,60820.0,60819.0,0.87375163]
[1728638000753,0.08271103,60820.0,60819.0,1.14174672]
[1728638000754,0.02197011,60820.0,60819.0,1.14174672]
[1728638002358,0.02197011,60820.0,60819.0,1.19295954]
[1728638003703,0.02197011,60820.0,60819.0,1.19294467]
[1728638005615,0.001634,60834.0,60833.0,0.43616798]
[1728638005829,0.001634,60834.0,60833.0,0.62985292]
[1728638006567,0.001634,60834.0,60833.0,0.62984404]
[1728638006787,0.003634,60834.0,60833.0,0.62984404]
[1728638007713,0.003634,60834.0,60833.0,0.54395205]
[1728638007945,0.008634,60834.0,60833.0,0.62984404]
[1728638008183,0.008634,60834.0,60833.0,0.64198504]
[1728638008400,0.002634,60834.0,60833.0,0.64198504]
[1728638009988,0.0814,60840.0,60839.0,0.164368]
[1728638010213,0.0814,60840.0,60839.0,0.52982804]
[1728638010472,0.0814,60840.0,60839.0,0.6034591]
[1728638010712,0.0814,60840.0,60839.0,0.61572591]
[1728638010955,0.0814,60840.0,60839.0,0.62800324]
[1728638011454,0.0829,60840.0,60839.0,0.62900324]
[1728638011695,0.0829,60840.0,60839.0,0.5308184]
[1728638012153,0.0829,60840.0,60839.0,0.44492641]
[1728638012392,0.0829,60840.0,60839.0,0.54311125]
[1728638012634,0.0829,60840.0,60839.0,0.5308184]
[1728638013332,0.0809,60840.0,60839.0,0.62800324]
[1728638013579,0.0829,60840.0,60839.0,0.61572591]
[1728638013788,0.0809,60840.0,60839.0,0.62800274]
[1728638014495,0.0809,60840.0,60839.0,0.62800312]
[1728638014719,0.0829,60840.0,60839.0,0.62800312]
[1728638014937,0.0809,60840.0,60839.0,0.62800312]
[1728638015157,0.0809,60840.0,60839.0,0.54211113]
[1728638015428,0.0809,60840.0,60839.0,0.54211227]
[1728638015659,0.0809,60840.0,60839.0,0.56665696]
[1728638015880,0.0809,60840.0,60839.0,0.65254895]
[1728638016331,0.0819,60840.0,60839.0,0.65254895]
[1728638016603,0.001,60840.0,60839.0,0.65254895]
[1728638017038,0.001,60840.0,60839.0,0.64027212]
[1728638017263,0.001,60840.0,60839.0,0.65254857]
[1728638017707,0.001,60840.0,60839.0,0.56665658]
[1728638017926,0.001,60840.0,60839.0,0.65238121]
[1728638019062,0.001,60840.0,60839.0,0.65319721]
[1728638019284,0.002632,60840.0,60839.0,0.65319721]
[1728638020192,0.002632,60840.0,60839.0,0.65519721]
[1728638020449,0.002632,60840.0,60839.0,0.65319721]
[1728638021795,0.002632,60840.0,60839.0,0.65519721]
[1728638022469,0.002632,60840.0,60839.0,0.53046549]
[1728638024330,0.002632,60840.0,60839.0,0.51818904]
[1728638024554,0.002632,60840.0,60839.0,0.53046647]
[1728638027367,0.002632,60840.0,60839.0,0.53246647]
[1728638027615,0.001632,60840.0,60839.0,0.53236937]
[1728638028501,0.001632,60840.0,60839.0,0.65603533]
[1728638028973,0.001632,60840.0,60839.0,0.65503533]
[1728638029206,0.001632,60840.0,60839.0,0.65603533]
[1728638029651,0.001632,60840.0,60839.0,0.65403533]
[1728638030123,0.001632,60840.0,60839.0,0.56814334]
[1728638031758,0.001632,60840.0,60839.0,0.56814702]
[1728638032291,0.001632,60840.0,60839.0,0.56814699]
[1728638032508,0.001632,60840.0,60839.0,0.44548103]
[1728638035295,0.001632,60840.0,60839.0,0.43319995]
[1728638035516,0.001632,60840.0,60839.0,0.44549889]
[1728638037305,0.001632,60840.0,60839.0,0.44558069]
[1728638038947,0.001632,60840.0,60839.0,0.43328175]
[1728638039183,0.001632,60840.0,60839.0,0.44558183]
[1728638039415,0.001632,60840.0,60839.0,0.53147382]
[1728638039866,0.001632,60840.0,60839.0,0.44558183]
[1728638040555,0.001632,60840.0,60839.0,0.49683003]
[1728638041001,0.001632,60840.0,60839.0,0.49686638]
[1728638045435,0.001632,60840.0,60839.0,0.49694664]
[1728638046200,0.001632,60840.0,60839.0,0.75653863]
[1728638046338,0.13,60849.0,60841.0,0.002]
[1728638046568,0.13,60849.0,60845.0,0.53293598]
[1728638046794,0.13,60849.0,60845.0,0.77780663]
[1728638047024,0.13,60849.0,60845.0,0.77580663]
[1728638047512,0.13,60849.0,60845.0,0.77780663]
[1728638047974,0.13,60849.0,60845.0,0.85970663]
[1728638048208,0.004632,60846.0,60845.0,0.86070663]
[1728638048436,0.0883125,60849.0,60848.0,0.271343]
[1728638048670,0.0883125,60849.0,60848.0,0.51621365]
[1728638048914,0.0883125,60849.0,60848.0,0.68799763]
[1728638049376,0.0883125,60849.0,60848.0,0.78389875]
[1728638050038,0.0883125,60849.0,60848.0,0.63650535]
[1728638050315,0.0883125,60849.0,60848.0,0.68760637]
[1728638050542,0.0883125,60849.0,60848.0,0.63650535]
[1728638050543,0.0913125,60849.0,60848.0,0.63650535]
[1728638050771,0.0883125,60849.0,60848.0,0.79537311]
[1728638050986,0.0913125,60849.0,60848.0,0.79537311]
[1728638052135,0.0002,60859.0,60852.0,0.107]
[1728638052399,0.0002,60859.0,60858.0,0.164316]
[1728638052650,0.0002,60859.0,60858.0,0.52947835]
[1728638053607,0.0002,60859.0,60858.0,0.6274579]
[1728638053884,0.0002,60859.0,60858.0,0.52947835]
[1728638054117,0.0002,60859.0,60858.0,0.6151588]
[1728638054353,0.0002,60859.0,60858.0,0.6181588]
[1728638054589,0.0002,60859.0,60858.0,0.61486019]
[1728638054820,0.0002,60859.0,60858.0,0.5169019]
[1728638055077,0.0002,60859.0,60858.0,0.5209019]
[1728638055554,0.0002,60859.0,60858.0,0.5169019]
[1728638055784,0.0002,60859.0,60858.0,0.5249019]
[1728638056016,0.0002,60859.0,60858.0,0.5209019]
[1728638056488,0.0002,60859.0,60858.0,0.59834106]
[1728638057430,0.0002,60859.0,60858.0,0.69423116]
[1728638057685,0.0002,60859.0,60858.0,0.69323116]
[1728638057914,0.0002,60859.0,60858.0,0.70553124]
[1728638058148,0.0002,60859.0,60858.0,0.62909208]
[1728638058386,0.0002,60859.0,60858.0,0.74110006]
[1728638058613,0.0002,60859.0,60858.0,0.63109208]
[1728638058844,0.0002,60859.0,60858.0,0.74110077]
[1728638059087,0.0002,60859.0,60858.0,0.63177684]
[1728638059330,0.0833,60878.0,60859.0,0.102]
[1728638059576,0.0833,60878.0,60860.0,0.27861108]
[1728638059809,0.0002,60879.0,60878.0,0.164262]
[1728638061041,0.0002,60879.0,60878.0,0.41200956]
[1728638061285,0.0002,60879.0,60878.0,0.165262]
[1728638061517,0.0002,60879.0,60878.0,0.164262]
[1728638062450,0.0002,60879.0,60878.0,0.165262]
[1728638062693,0.0002,60879.0,60878.0,0.164262]
[1728638063225,0.0002,60879.0,60878.0,0.41200956]
[1728638063456,0.0002,60879.0,60878.0,0.164262]
[1728638064153,0.0002,60879.0,60878.0,0.16754704]
[1728638064646,0.0002,60879.0,60878.0,0.164262]
[1728638065570,0.0002,60879.0,60878.0,0.16754692]
[1728638066291,0.001634,60881.0,60880.0,0.005]
[1728638066530,0.0001,60890.0,60889.0,0.25012499]
[1728638068263,0.0001,60890.0,60889.0,0.35540937]
[1728638068492,0.0001,60890.0,60889.0,0.43182499]
[1728638070571,0.0001,60890.0,60889.0,0.43382499]
[1728638070807,0.0001,60890.0,60889.0,0.43482499]
[1728638071498,0.0001,60890.0,60889.0,0.346933]
[1728638071981,0.0001,60890.0,60889.0,0.267233]
[1728638072663,0.001634,60895.0,60894.0,0.25011099]
[1728638074096,0.001634,60895.0,60894.0,0.164219]
[1728638074357,0.001634,60895.0,60894.0,0.25011099]
[1728638075962,0.001634,60895.0,60894.0,0.33600298]
[1728638076651,0.0002,60899.0,60898.0,0.25010099]
[1728638077137,0.0002,60899.0,60898.0,0.33599298]
[1728638077593,0.0002,60899.0,60898.0,0.58374054]
[1728638077832,0.0002,60899.0,60898.0,0.33599298]
[1728638079208,0.0002,60899.0,60898.0,0.33699298]
[1728638079444,0.0002,60899.0,60898.0,0.33799298]
[1728638080343,0.0002,60899.0,60898.0,0.58574054]
[1728638080568,0.0002,60899.0,60898.0,0.67163253]
[1728638080795,0.0002,60899.0,60898.0,0.42588497]
[1728638081672,0.0002,60899.0,60898.0,0.42488497]
[1728638081904,0.0002,60899.0,60898.0,0.52688497]
[1728638082143,0.000816,60910.0,60906.0,0.264187]
[1728638082399,0.000816,60910.0,60907.0,0.1]
[1728638082625,0.0159154,60913.0,60912.0,0.42509724]
[1728638083337,0.0159154,60913.0,60912.0,0.29463412]
[1728638085681,0.0920154,60913.0,60912.0,0.164171]
[1728638085896,0.0920154,60913.0,60912.0,0.29463412]
[1728638086347,0.164967,60920.0,60918.0,0.164155]
[1728638086348,0.000816,60920.0,60918.0,0.164155]
[1728638086563,0.000816,60920.0,60918.0,0.29461812]
[1728638087269,0.0761,60932.0,60919.0,0.328304]
[1728638087496,0.4975503,60931.0,60925.0,0.164135]
[1728638087736,0.164125,60929.0,60925.0,0.164135]
[1728638087974,0.1693093,60928.0,60926.0,0.164131]
[1728638088434,0.1693093,60928.0,60927.0,0.16413]
[1728638089615,0.0761,60932.0,60922.0,0.13046312]
[1728638089841,0.0761,60932.0,60931.0,0.16412]
[1728638090074,0.0761,60932.0,60930.0,0.328245]
[1728638090539,0.0761,60932.0,60931.0,0.54233068]
[1728638090773,0.0761,60932.0,60931.0,0.29458312]
[1728638091270,0.0761,60932.0,60931.0,0.16512]
[1728638091965,0.2627193,60932.0,60931.0,0.001]
[1728638092427,0.0761,60932.0,60931.0,0.16512]
[1728638092915,0.0761,60932.0,60931.0,0.54333068]
[1728638093171,0.0779,60938.0,60937.0,0.164103]
[1728638093423,0.0779,60938.0,60931.0,0.002]
[1728638093424,0.2472093,60938.0,60931.0,0.002]
[1728638093653,0.164117,60932.0,60931.0,0.002]
[1728638093893,0.3334263,60932.0,60931.0,0.002]
[1728638094130,0.3334263,60932.0,60931.0,0.001]
[1728638094362,0.40727113,60932.0,60931.0,0.001]
[1728638095054,0.1693093,60932.0,60931.0,0.001]
[1728638095300,0.1693093,60932.0,60927.0,0.24774756]
[1728638095527,0.1693093,60931.0,60928.0,0.164127]
[1728638095755,0.1693093,60931.0,60927.0,0.41187656]
[1728638095990,0.1693093,60931.0,60927.0,0.24774756]
[1728638096224,0.04975313,60930.0,60927.0,0.24774756]
[1728638096458,0.1693093,60929.0,60927.0,0.24774756]
[1728638096710,0.164118,60932.0,60928.0,0.164128]
[1728638096944,0.1693093,60931.0,60928.0,0.001]
[1728638097175,0.1693093,60931.0,60928.0,0.164126]
[1728638097400,0.1693093,60931.0,60928.0,0.13046312]
[1728638097852,0.1693093,60931.0,60928.0,0.29459012]
[1728638098088,0.328224,60934.0,60925.0,0.24774756]
[1728638098326,0.164119,60932.0,60929.0,0.13046312]
[1728638098603,0.164119,60932.0,60928.0,0.165126]
[1728638098837,0.0009884,60938.0,60936.0,0.164105]
[1728638099072,0.0009884,60938.0,60929.0,0.13046312]
[1728638099325,0.0002,60939.0,60934.0,0.164109]
[1728638099553,0.1695093,60939.0,60936.0,0.164104]
[1728638100258,0.23556973,60938.0,60929.0,0.13046312]
[1728638100523,0.23556973,60938.0,60932.0,0.41186256]
[1728638100524,0.164108,60936.0,60932.0,0.41186256]
[1728638100755,0.3334193,60935.0,60934.0,0.001]
[1728638101204,0.3334193,60935.0,60932.0,0.24774756]
[1728638101676,0.164112,60934.0,60932.0,0.24774756]
[1728638101901,0.1693093,60934.0,60932.0,0.41186356]
[1728638102144,0.58121683,60934.0,60929.0,0.13146312]
[1728638102384,0.239722,60930.0,60929.0,0.001]
[1728638102623,0.4090313,60930.0,60929.0,0.001]
[1728638102854,0.2449093,60930.0,60920.0,0.13046312]
[1728638103079,0.2449093,60930.0,60926.0,0.24774756]
[1728638103080,0.16413,60927.0,60926.0,0.24774756]
[1728638103307,0.16413,60927.0,60920.0,0.13046312]
[1728638103308,0.1693093,60927.0,60920.0,0.13046312]
[1728638103536,0.164136,60925.0,60921.0,0.164145]
[1728638103803,0.41210479,60924.0,60921.0,0.164145]
[1728638104024,0.24796579,60924.0,60923.0,0.164141]
[1728638104272,0.1693093,60924.0,60923.0,0.29460412]
[1728638104958,0.1693093,60924.0,60923.0,0.13046312]
[1728638105190,0.1693093,60924.0,60923.0,0.29460412]
[1728638105424,0.0756,60930.0,60923.0,0.29460412]
[1728638105425,0.0756,60930.0,60929.0,0.164125]
[1728638105650,0.0009954,60934.0,60924.0,0.328273]
[1728638105651,0.0009954,60934.0,60928.0,0.13046312]
[1728638105884,0.1693093,60933.0,60932.0,0.62281312]
[1728638106362,0.0798,60935.0,60934.0,0.164111]
[1728638107090,0.0002,60939.0,60936.0,0.328212]
[1728638107324,0.0002,60939.0,60938.0,0.34316621]
[1728638107559,0.0002,60939.0,60938.0,0.57117464]
[1728638107809,0.0002,60939.0,60938.0,0.47397046]
[1728638108031,0.0002,60939.0,60938.0,0.69523764]
[1728638108257,0.0002,60939.0,60938.0,0.9429852]
[1728638108496,0.0002,60939.0,60938.0,0.57397046]
[1728638109199,0.0813,60939.0,60938.0,0.69646051]
[1728638109429,0.0813,60939.0,60938.0,0.5955022]
[1728638109653,0.0813,60939.0,60938.0,0.57397046]
[1728638109900,0.0813,60939.0,60938.0,0.57497046]
[1728638110150,0.0813,60939.0,60938.0,0.57697046]
[1728638110393,0.0813,60939.0,60938.0,0.39756412]
[1728638110608,0.0813,60939.0,60938.0,0.5750325]
[1728638111279,0.0813,60939.0,60938.0,0.5740325]
[1728638111507,0.0813,60939.0,60938.0,0.85034929]
[1728638111736,0.000816,60940.0,60939.0,0.164098]
[1728638111992,0.01,60950.0,60949.0,0.39453412]
[1728638113095,0.01,60950.0,60949.0,0.39753412]
[1728638113328,0.01,60950.0,60949.0,0.39953412]
[1728638113551,0.01,60950.0,60949.0,0.57902901]
[1728638113807,0.010816,60950.0,60949.0,0.57902901]
[1728638114130,0.010816,60950.0,60949.0,0.69752271]
[1728638114630,0.010816,60950.0,60949.0,0.94327027]
[1728638114867,0.010816,60950.0,60949.0,0.69752271]
[1728638115092,0.010816,60950.0,60949.0,0.69552271]
[1728638115332,0.010816,60950.0,60949.0,0.69749276]
[1728638115579,0.010816,60950.0,60949.0,0.69829361]
[1728638116579,0.010816,60950.0,60949.0,0.57688302]
[1728638116808,0.010816,60950.0,60949.0,0.58088302]
[1728638117348,0.000816,60951.0,60950.0,0.164068]
[1728638117587,0.000816,60951.0,60950.0,0.4434169]
[1728638118802,0.000816,60951.0,60950.0,0.4454169]
[1728638119536,0.000816,60951.0,60950.0,0.4434169]
[1728638119786,0.000816,60951.0,60950.0,0.51624672]
[1728638120262,0.000816,60951.0,60950.0,0.51924672]
[1728638120513,0.000816,60951.0,60950.0,0.4464169]
[1728638120993,0.000816,60951.0,60950.0,0.4484169]
[1728638121465,0.000816,60951.0,60950.0,0.52126291]
[1728638121704,0.000816,60951.0,60950.0,0.54051419]
[1728638122174,0.000816,60951.0,60950.0,0.4474169]
[1728638122412,0.000816,60951.0,60950.0,0.51925341]
[1728638122645,0.000816,60951.0,60950.0,0.51625341]
[1728638122922,0.000816,60951.0,60950.0,0.51725341]
[1728638123384,0.000816,60951.0,60950.0,0.33690451]
[1728638123645,0.000816,60951.0,60950.0,0.264068]
[1728638123875,0.000816,60951.0,60950.0,0.51611291]
[1728638124165,0.000816,60951.0,60950.0,0.264068]
[1728638124423,0.000816,60951.0,60950.0,0.31261633]
[1728638125342,0.000816,60951.0,60950.0,0.264068]
[1728638127430,0.00369264,60955.0,60954.0,0.29452112]
[1728638131663,0.00369264,60955.0,60954.0,0.164058]
[1728638131893,0.00369264,60955.0,60954.0,0.31588759]
[1728638132131,0.0002,60959.0,60958.0,0.264047]
[1728638132375,0.0167324,60974.0,60963.0,0.005]
[1728638132605,0.0167324,60974.0,60972.0,0.240509]
[1728638132822,0.0167324,60974.0,60972.0,0.29447212]
[1728638133282,0.0167324,60974.0,60972.0,0.54221968]
[1728638133503,0.0167324,60974.0,60972.0,0.29447212]
[1728638133732,0.0167324,60974.0,60968.0,0.32804]
[1728638133969,0.1693093,60972.0,60965.0,0.13046312]
[1728638134190,0.17919467,60972.0,60969.0,0.24774756]
[1728638134425,0.17919467,60972.0,60965.0,0.45851512]
[1728638134673,0.17919467,60972.0,60959.0,0.17276197]
[1728638134674,0.17919467,60972.0,60961.0,0.04850798]
[1728638134906,0.17919467,60972.0,60964.0,0.24774756]
[1728638134907,0.333025,60971.0,60964.0,0.24774756]
[1728638135136,0.164027,60966.0,60964.0,0.24774756]
[1728638135364,0.1693093,60965.0,60964.0,0.24774756]
[1728638135875,0.1693093,60965.0,60961.0,0.328078]
[1728638135876,0.1693093,60965.0,60963.0,0.164031]
[1728638136553,0.03333313,60964.0,60963.0,0.164031]
[1728638136874,0.20264243,60964.0,60961.0,0.164038]
[1728638137053,0.20264243,60964.0,60958.0,0.328094]
[1728638137310,0.20264243,60964.0,60961.0,0.164037]
[1728638137537,0.20264243,60964.0,60963.0,0.001]
[1728638137800,0.36667343,60964.0,60963.0,0.001]
[1728638138067,0.3333403,60964.0,60963.0,0.001]
[1728638138320,0.1693093,60964.0,60963.0,0.001]
[1728638138792,0.3333403,60964.0,60963.0,0.001]
[1728638139074,0.1693093,60964.0,60962.0,0.164036]
[1728638139290,0.06613883,60963.0,60962.0,0.164036]
[1728638139534,0.06613883,60963.0,60961.0,0.164036]
[1728638140052,0.32804,60969.0,60958.0,0.329094]
[1728638140053,0.1650055,60971.0,60966.0,0.164023]
[1728638140308,0.1650055,60971.0,60966.0,0.164025]
[1728638140309,0.1693093,60969.0,60966.0,0.164025]
[1728638140537,0.1693093,60969.0,60968.0,0.16402]
[1728638140777,0.1693093,60969.0,60964.0,0.57580656]
[1728638140778,0.1693093,60969.0,60964.0,0.24774756]
[1728638141011,0.1693093,60969.0,60968.0,0.16402]
[1728638141470,0.1693093,60969.0,60967.0,0.164023]
[1728638141709,0.1693093,60969.0,60966.0,0.164025]
[1728638141982,0.1693093,60969.0,60965.0,0.328055]
[1728638142187,0.1693093,60969.0,60966.0,0.164023]
[1728638142314,0.3333273,60969.0,60964.0,0.41177556]
[1728638142542,0.1693093,60969.0,60964.0,0.24774756]
[1728638142750,0.1693093,60969.0,60966.0,0.165024]
[1728638142964,0.1693093,60969.0,60967.0,0.164022]
[1728638143629,0.1693093,60969.0,60968.0,0.16402]
[1728638143795,0.1693093,60969.0,60967.0,0.164021]
[1728638143965,0.1693093,60969.0,60967.0,0.164023]
[1728638144579,0.1693093,60969.0,60967.0,0.001]
[1728638144742,0.16402,60968.0,60967.0,0.002]
[1728638144971,0.16402,60968.0,60967.0,0.001]
[1728638145340,0.3333293,60968.0,60967.0,0.002]
[1728638145556,0.47328196,60968.0,60967.0,0.001]
[1728638145986,0.47328196,60968.0,60967.0,0.002]
[1728638146861,0.47328196,60968.0,60967.0,0.001]
[1728638147073,0.47328196,60968.0,60967.0,0.002]
[1728638147697,0.47328196,60968.0,60967.0,0.001]
[1728638147698,0.3333293,60968.0,60967.0,0.001]
[1728638147916,0.3333293,60968.0,60967.0,0.002]
[1728638148800,0.1701243,60968.0,60967.0,0.002]
[1728638149035,0.000815,60968.0,60967.0,0.166023]
[1728638149468,0.000815,60968.0,60967.0,0.29648612]
[1728638149916,0.000815,60968.0,60967.0,0.29548612]
[1728638150358,0.000815,60968.0,60967.0,0.47638612]
[1728638150802,0.000815,60968.0,60967.0,0.3925729]
[1728638151272,0.000815,60968.0,60967.0,0.3935729]
[1728638151498,0.000815,60968.0,60967.0,0.52969369]
[1728638151730,0.0050213,60973.0,60967.0,0.52969369]
[1728638151731,0.0050213,60973.0,60972.0,0.264009]
[1728638151956,0.0050213,60973.0,60972.0,0.57424281]
[1728638152180,0.0050213,60973.0,60972.0,0.58643184]
[1728638152832,0.0050213,60973.0,60972.0,0.97808737]
[1728638153509,0.0167324,60974.0,60973.0,0.169007]
[1728638153738,0.0167324,60974.0,60973.0,0.63027602]
[1728638153953,0.0167324,60974.0,60973.0,0.68097633]
[1728638154177,0.0167324,60974.0,60973.0,0.68297633]
[1728638154410,0.0002,60979.0,60978.0,0.268993]
[1728638154656,0.01,60988.0,60987.0,0.268969]
[1728638154926,0.01,60988.0,60987.0,0.9652569]
[1728638155175,0.01,60988.0,60987.0,0.81615341]
[1728638156049,0.01,60988.0,60987.0,0.81915341]
[1728638156709,0.01,60988.0,60987.0,0.82315341]
[1728638157371,0.01,60988.0,60987.0,0.57207742]
[1728638157607,0.01,60988.0,60987.0,0.35073969]
[1728638157839,0.01,60988.0,60987.0,0.41871656]
[1728638158283,0.01,60988.0,60987.0,0.170969]
[1728638158780,0.01,60988.0,60987.0,0.167969]
[1728638158999,0.01,60988.0,60987.0,0.267969]
[1728638159441,0.01,60988.0,60987.0,0.263969]
[1728638159650,0.01,60988.0,60987.0,0.267969]
[1728638159870,0.01,60988.0,60987.0,0.51571656]
[1728638160101,0.01,60988.0,60987.0,0.4469817]
[1728638160334,0.01,60988.0,60987.0,0.51572368]
[1728638160552,0.01,60988.0,60987.0,0.51571957]
[1728638160768,0.01,60988.0,60987.0,0.68502887]
[1728638160985,0.01,60988.0,60987.0,0.61328689]
[1728638161234,0.01,60988.0,60987.0,1.18147218]
[1728638161467,0.01,60988.0,60987.0,0.81738689]
[1728638161686,0.01,60997.0,60994.0,0.26895]
[1728638161916,0.01,60997.0,60994.0,0.47208753]
[1728638162168,0.01,60997.0,60994.0,0.99913973]
[1728638162392,0.01,60997.0,60994.0,0.74755259]
[1728638162831,0.01,60997.0,60994.0,0.868569]
[1728638163054,0.01,60997.0,60994.0,0.74955259]
[1728638163279,0.01,60997.0,60994.0,0.99778849]
[1728638163516,0.01,60997.0,60994.0,1.02203212]
[1728638164175,0.01,60997.0,60996.0,0.291945]
[1728638164384,0.01,60997.0,60996.0,0.74207645]
[1728638164611,1e-06,60997.0,60996.0,0.73879088]
[1728638164849,1e-06,60997.0,60996.0,0.78632259]
[1728638165077,1e-06,60997.0,60996.0,0.61708447]
[1728638165323,1e-06,60997.0,60996.0,0.68958865]
[1728638165545,1e-06,60997.0,60996.0,0.4382543]
[1728638165770,1e-06,60997.0,60996.0,0.48658948]
[1728638166209,1e-06,60997.0,60996.0,0.4382543]
[1728638166470,1e-06,60997.0,60996.0,0.4332543]
[1728638166714,1e-06,60997.0,60996.0,0.163945]
[1728638168776,0.0152611,60997.0,60996.0,0.163945]